fUSD/lending_fUSD_20240625
["ID","MTS","AMOUNT","RATE_DAILY","PERIOD"]
[330400633,1719348635359,-500.0,0.00019178,2]
[330400634,1719348635370,-500.0,0.00019178,2]
[330400635,1719348635379,-761.47,0.00019178,2]
[330400636,1719348635389,-906.13,0.00019178,2]
[330400637,1719348635399,-1208.0,0.00019178,2]
[330400638,1719348635408,-1219.48,0.00019178,2]
[330400639,1719348635421,-513.38,0.00019178,2]
[330400640,1719348635430,-713.81,0.00019178,2]
[330400641,1719348635439,-500.0,0.00019178,2]
[330400642,1719348635449,-500.0,0.00019178,2]
[330400643,1719348635458,-500.0,0.00019178,2]
[330400644,1719348635467,-2355.6,0.00019178,2]
[330400645,1719348635477,-1533.88,0.00019178,2]
[330400646,1719348635487,-734.82,0.00019178,2]
[330400647,1719348635497,-500.0,0.00019178,2]
[330400648,1719348635506,-500.0,0.00019178,2]
[330400649,1719348635516,-500.0,0.00019178,2]
[330400650,1719348635526,-500.0,0.00019178,2]
[330400651,1719348635535,-500.0,0.00019178,2]
[330400652,1719348635544,-500.0,0.00019178,2]
[330400653,1719348635554,-1167.52,0.00019178,2]
[330400654,1719348635564,-1606.25,0.00019178,2]
[330400655,1719348635574,-3026.55,0.00019178,2]
[330400656,1719348635583,-679.37,0.00019178,2]
[330400657,1719348635593,-548.12,0.00019178,2]
[330400658,1719348635603,-1563.17,0.00019178,2]
[330400659,1719348635612,-500.0,0.00019178,2]
[330400660,1719348635621,-544.64,0.00019178,2]
[330400661,1719348635631,-500.0,0.00019178,2]
[330400662,1719348635642,-531.0,0.00019178,2]
[330400663,1719348635651,-500.0,0.00019178,2]
[330400664,1719348635662,-500.0,0.00019178,2]
[330400665,1719348635672,-2423.3,0.00019178,2]
[330400666,1719348635681,-940.6,0.00019178,2]
[330400667,1719348635696,-868.64,0.00019178,2]
[330400668,1719348635706,-901.6,0.00019178,2]
[330400669,1719348635716,-500.0,0.00019178,2]
[330400670,1719348635727,-668.21,0.00019178,2]
[330400671,1719348635738,-794.5,0.00019178,2]
[330400672,1719348635748,-500.0,0.00019178,2]
[330400673,1719348635757,-1533.56,0.00019178,2]
[330400674,1719348635767,-1769.04,0.00019178,2]
[330400675,1719348635776,-500.0,0.00019178,2]
[330400676,1719348635786,-767.13,0.00019178,2]
[330400677,1719348635795,-1138.26,0.00019178,2]
[330400678,1719348635804,-500.0,0.00019178,2]
[330400679,1719348635814,-500.0,0.00019178,2]
[330400680,1719348635823,-1225.01,0.00019178,2]
[330400681,1719348635832,-715.3,0.00019178,2]
[330400682,1719348635842,-500.0,0.00019178,2]
[330400683,1719348635851,-1418.98,0.00019178,2]
[330400684,1719348635861,-4337.53,0.00019178,2]
[330400685,1719348635871,-500.0,0.00019178,2]
[330400686,1719348635880,-500.0,0.00019178,2]
[330400687,1719348635890,-500.93,0.00019178,2]
[330400688,1719348635899,-500.0,0.00019178,2]
[330400689,1719348635908,-1282.91,0.00019178,2]
[330400690,1719348635918,-500.0,0.00019178,2]
[330400691,1719348635927,-626.97,0.00019178,2]
[330400692,1719348635936,-916.94,0.00019178,2]
[330400693,1719348635947,-500.0,0.00019178,2]
[330400694,1719348635956,-652.6,0.00019178,2]
[330400695,1719348635965,-500.0,0.00019178,2]
[330400696,1719348635975,-651.11,0.00019178,2]
[330400697,1719348635984,-500.0,0.00019178,2]
[330400698,1719348635994,-1098.52,0.00019178,2]
[330400699,1719348636003,-500.0,0.00019178,2]
[330400700,1719348636013,-4300.18,0.00019178,2]
[330400701,1719348636022,-721.59,0.00019178,2]
[330400702,1719348636032,-1458.27,0.00019178,2]
[330400703,1719348636041,-1379.99,0.00019178,2]
[330400704,1719348636050,-674.79,0.00019178,2]
[330400705,1719348636061,-500.0,0.00019178,2]
[330400706,1719348636071,-1634.72,0.00019178,2]
[330400707,1719348636080,-500.0,0.00019178,2]
[330400708,1719348636089,-591.27,0.00019178,2]
[330400709,1719348636098,-1022.77,0.00019178,2]
[330400710,1719348636107,-500.0,0.00019178,2]
[330400711,1719348636116,-1393.17,0.00019178,2]
[330400712,1719348636127,-500.0,0.00019178,2]
[330400713,1719348636138,-565.35,0.00019178,2]
[330400714,1719348636150,-1481.83,0.00019178,2]
[330400715,1719348636160,-500.0,0.00019178,2]
[330400716,1719348636169,-500.0,0.00019178,2]
[330400717,1719348636179,-660.25,0.00019178,2]
[330400718,1719348636188,-1313.96,0.00019178,2]
[330400719,1719348636198,-583.15788495,0.00019178,2]
[330400720,1719348636207,-9683.67,0.00019178,2]
[330400721,1719348636218,-500.0,0.00019178,2]
[330400722,1719348636227,-500.0,0.00019178,2]
[330400723,1719348636236,-602.53,0.00019178,2]
[330400724,1719348636247,-500.0,0.00019178,2]
[330400725,1719348636258,-1066.37,0.00019178,2]
[330400726,1719348636267,-566.8,0.00019178,2]
[330400727,1719348636276,-531.66,0.00019178,2]
[330400728,1719348636288,-500.0,0.00019178,2]
[330400729,1719348636297,-500.0,0.00019178,2]
[330400730,1719348636307,-737.39,0.00019178,2]
[330400731,1719348636318,-500.0,0.00019178,2]
[330400732,1719348636328,-500.0,0.00019178,2]
[330400733,1719348636337,-500.0,0.00019178,2]
[330400734,1719348636346,-1525.52,0.00019178,2]
[330400735,1719348636358,-500.0,0.00019178,2]
[330400736,1719348636368,-500.0,0.00019178,2]
[330400737,1719348636377,-1125.37,0.00019178,2]
[330400738,1719348636386,-500.0,0.00019178,2]
[330400739,1719348636395,-702.7,0.00019178,2]
[330400740,1719348636405,-1150.13,0.00019178,2]
[330400741,1719348636414,-500.0,0.00019178,2]
[330400742,1719348636424,-500.0,0.00019178,2]
[330400743,1719348636433,-500.0,0.00019178,2]
[330400744,1719348636444,-500.0,0.00019178,2]
[330400745,1719348636453,-500.0,0.00019178,2]
[330400746,1719348636463,-3238.22,0.00019178,2]
[330400747,1719348636473,-1653.51,0.00019178,2]
[330400748,1719348636482,-500.0,0.00019178,2]
[330400749,1719348636491,-500.0,0.00019178,2]
[330400750,1719348636500,-683.09,0.00019178,2]
[330400751,1719348636510,-1081.86,0.00019178,2]
[330400752,1719348636519,-500.0,0.00019178,2]
[330400753,1719348636528,-500.0,0.00019178,2]
[330400754,1719348636538,-980.9,0.00019178,2]
[330400755,1719348636547,-500.0,0.00019178,2]
[330400756,1719348636556,-500.0,0.00019178,2]
[330400757,1719348636566,-1456.87,0.00019178,2]
[330400758,1719348636575,-1207.43,0.00019178,2]
[330400759,1719348636585,-610.27,0.00019178,2]
[330400760,1719348636596,-431.83107893,0.00019178,2]
[330400761,1719348636605,-500.0,0.00019178,2]
[330400762,1719348636615,-500.0,0.00019178,2]
[330400763,1719348636625,-1706.41,0.00019178,2]
[330400764,1719348636634,-1039.59,0.00019178,2]
[330400765,1719348636644,-607.22,0.00019178,2]
[330400766,1719348636653,-500.0,0.00019178,2]
[330400767,1719348636662,-532.79,0.00019178,2]
[330400768,1719348636672,-4515.89,0.00019178,2]
[330400769,1719348636682,-2553.15,0.00019178,2]
[330400770,1719348636695,-500.0,0.00019178,2]
[330400771,1719348636704,-530.01509165,0.00019178,2]
[330400772,1719348636714,-500.0,0.00019178,2]
[330400773,1719348636724,-500.0,0.00019178,2]
[330400774,1719348636734,-500.0,0.00019178,2]
[330400775,1719348636744,-500.0,0.00019178,2]
[330400776,1719348636754,-500.0,0.00019178,2]
[330400777,1719348636763,-1066.62,0.00019178,2]
[330400778,1719348636776,-634.88515086,0.00019178,2]
[330400779,1719348636786,-1490.14,0.00019178,2]
[330400780,1719348636795,-883.21,0.00019178,2]
[330400781,1719348636804,-500.0,0.00019178,2]
[330400782,1719348636814,-1135.58,0.00019178,2]
[330400783,1719348636823,-935.73,0.00019178,2]
[330400784,1719348636833,-811.74,0.00019178,2]
[330400785,1719348636843,-1127.38,0.00019178,2]
[330400786,1719348636852,-500.0,0.00019178,2]
[330400787,1719348636862,-500.0,0.00019178,2]
[330400788,1719348636871,-981.77,0.00019178,2]
[330400789,1719348636881,-764.52,0.00019178,2]
[330400790,1719348636890,-749.03,0.00019178,2]
[330400791,1719348636899,-500.0,0.00019178,2]
[330400792,1719348636908,-772.07,0.00019178,2]
[330400793,1719348636918,-626.74,0.00019178,2]
[330400794,1719348636927,-1070.9,0.00019178,2]
[330400795,1719348636936,-1098.9,0.00019178,2]
[330400796,1719348636945,-721.63,0.00019178,2]
[330400797,1719348636954,-1198.61,0.00019178,2]
[330400798,1719348636964,-1153.07,0.00019178,2]
[330400799,1719348636972,-500.0,0.00019178,2]
[330400800,1719348636982,-500.0,0.00019178,2]
[330400801,1719348636991,-502.67,0.00019178,2]
[330400802,1719348637001,-1162.23,0.00019178,2]
[330400803,1719348637010,-500.0,0.00019178,2]
[330400804,1719348637020,-1417.28,0.00019178,2]
[330400805,1719348637030,-639.79,0.00019178,2]
[330400806,1719348637039,-805.63,0.00019178,2]
[330400807,1719348637049,-500.0,0.00019178,2]
[330400808,1719348637059,-500.0,0.00019178,2]
[330400809,1719348637068,-464.8592461,0.00019178,2]
[330400810,1719348637078,-1584.36,0.00019178,2]
[330400811,1719348637087,-500.0,0.00019178,2]
[330400812,1719348637096,-603.3,0.00019178,2]
[330400813,1719348637106,-748.78,0.00019178,2]
[330400814,1719348637115,-500.0,0.00019178,2]
[330400815,1719348637125,-679.46,0.00019178,2]
[330400816,1719348637135,-202.84268361,0.00019178,2]
[330400817,1719348637144,-500.0,0.00019178,2]
[330400818,1719348637153,-500.0,0.00019178,2]
[330400819,1719348637163,-500.0,0.00019178,2]
[330400820,1719348637172,-269.72903684,0.00019178,2]
[330400821,1719348637182,-500.0,0.00019178,2]
[330400822,1719348637191,-500.0,0.00019178,2]
[330400823,1719348637200,-558.96219951,0.00019178,2]
[330400824,1719348637211,-500.0,0.00019178,2]
[330400825,1719348637222,-500.0,0.00019178,2]
[330400826,1719348637231,-500.0,0.00019178,2]
[330400827,1719348637240,-679.99,0.00019178,2]
[330400828,1719348637250,-1196.11,0.00019178,2]
[330400829,1719348637260,-500.0,0.00019178,2]
[330400830,1719348637269,-699.07,0.00019178,2]
[330400831,1719348637279,-500.0,0.00019178,2]
[330400832,1719348637289,-2347.27,0.00019178,2]
[330400833,1719348637298,-554.88,0.00019178,2]
[330400834,1719348637308,-648.61,0.00019178,2]
[330400835,1719348637318,-1603.99,0.00019178,2]
[330400836,1719348637327,-1226.07,0.00019178,2]
[330400837,1719348637337,-1351.01,0.00019178,2]
[330400838,1719348637346,-1086.43,0.00019178,2]
[330400839,1719348637357,-500.0,0.00019178,2]
[330400840,1719348637367,-871.99,0.00019178,2]
[330400841,1719348637377,-500.0,0.00019178,2]
[330400842,1719348637387,-500.0,0.00019178,2]
[330400843,1719348637396,-532.09,0.00019178,2]
[330400844,1719348637406,-500.0,0.00019178,2]
[330400845,1719348637415,-968.99,0.00019178,2]
[330400846,1719348637425,-500.0,0.00019178,2]
[330400851,1719348637759,-500.0,0.00019178,2]
[330400852,1719348637772,-693.06,0.00019178,2]
[330400853,1719348637782,-500.0,0.00019178,2]
[330400854,1719348637792,-593.87,0.00019178,2]
[330400855,1719348637801,-500.0,0.00019178,2]
[330400856,1719348637810,-500.0,0.00019178,2]
[330400857,1719348637819,-500.0,0.00019178,2]
[330400858,1719348637829,-727.22,0.00019178,2]
[330400859,1719348637838,-500.0,0.00019178,2]
[330400860,1719348637848,-871.46,0.00019178,2]
[330400861,1719348637857,-1969.04,0.00019178,2]
[330400862,1719348637868,-552.4,0.00019178,2]
[330400863,1719348637877,-500.0,0.00019178,2]
[330400864,1719348637887,-500.0,0.00019178,2]
[330400865,1719348637897,-13106.48,0.00019178,2]
[330400866,1719348637906,-500.0,0.00019178,2]
[330400867,1719348637916,-1881.21,0.00019178,2]
[330400868,1719348637925,-29040.16,0.00019178,2]
[330400869,1719348637935,-837.96,0.00019178,2]
[330400870,1719348637945,-500.0,0.00019178,2]
[330400871,1719348637955,-500.0,0.00019178,2]
[330400872,1719348637965,-500.0,0.00019178,2]
[330400873,1719348637975,-973.84,0.00019178,2]
[330400874,1719348637985,-526.29,0.00019178,2]
[330400875,1719348637995,-998.76,0.00019178,2]
[330400876,1719348638005,-592.59,0.00019178,2]
[330400877,1719348638018,-500.0,0.00019178,2]
[330400879,1719348638028,-800.13,0.00019178,2]
[330400881,1719348638038,-500.0,0.00019178,2]
[330400883,1719348638048,-500.0,0.00019178,2]
[330400885,1719348638057,-500.0,0.00019178,2]
[330400886,1719348638068,-500.0,0.00019178,2]
[330400888,1719348638077,-500.0,0.00019178,2]
[330400890,1719348638087,-1169.11,0.00019178,2]
[330400892,1719348638097,-500.0,0.00019178,2]
[330400894,1719348638107,-500.0,0.00019178,2]
[330400895,1719348638116,-530.07,0.00019178,2]
[330400897,1719348638126,-885.12,0.00019178,2]
[330400899,1719348638136,-500.0,0.00019178,2]
[330400900,1719348638146,-541.12,0.00019178,2]
[330400901,1719348638156,-500.0,0.00019178,2]
[330400902,1719348638165,-564.53,0.00019178,2]
[330400903,1719348638176,-500.0,0.00019178,2]
[330400904,1719348638187,-694.53,0.00019178,2]
[330400905,1719348638196,-500.0,0.00019178,2]
[330400906,1719348638206,-500.0,0.00019178,2]
[330400907,1719348638215,-500.0,0.00019178,2]
[330400908,1719348638225,-500.0,0.00019178,2]
[330400909,1719348638235,-500.0,0.00019178,2]
[330400910,1719348638245,-1124.73,0.00019178,2]
[330400911,1719348638256,-2315.9,0.00019178,2]
[330400912,1719348638265,-3091.65,0.00019178,2]
[330400913,1719348638275,-1731.37,0.00019178,2]
[330400914,1719348638285,-500.0,0.00019178,2]
[330400915,1719348638295,-500.0,0.00019178,2]
[330400916,1719348638305,-500.0,0.00019178,2]
[330400917,1719348638315,-2759.85,0.00019178,2]
[330400918,1719348638324,-1163.99,0.00019178,2]
[330400919,1719348638334,-560.19,0.00019178,2]
[330400920,1719348638344,-500.0,0.00019178,2]
[330400922,1719348638356,-550.33,0.00019178,2]
[330400924,1719348638366,-681.87,0.00019178,2]
[330400926,1719348638375,-1109.18,0.00019178,2]
[330400928,1719348638385,-500.0,0.00019178,2]
[330400930,1719348638394,-500.0,0.00019178,2]
[330400931,1719348638404,-2938.32,0.00019178,2]
[330400933,1719348638413,-500.0,0.00019178,2]
[330400935,1719348638423,-500.0,0.00019178,2]
[330400937,1719348638433,-1864.05,0.00019178,2]
[330400939,1719348638443,-500.0,0.00019178,2]
[330400941,1719348638454,-500.0,0.00019178,2]
[330400942,1719348638464,-2189.87,0.00019178,2]
[330400944,1719348638474,-1917.78,0.00019178,2]
[330400946,1719348638484,-800.38,0.00019178,2]
[330400948,1719348638494,-972.23,0.00019178,2]
[330400950,1719348638504,-500.0,0.00019178,2]
[330400951,1719348638514,-500.0,0.00019178,2]
[330400953,1719348638525,-523.82,0.00019178,2]
[330400955,1719348638535,-855.24,0.00019178,2]
[330400957,1719348638545,-500.0,0.00019178,2]
[330400959,1719348638556,-500.0,0.00019178,2]
[330400961,1719348638566,-622.12,0.00019178,2]
[330400963,1719348638576,-1678.97,0.00019178,2]
[330400965,1719348638586,-6572.01,0.00019178,2]
[330400966,1719348638596,-572.45,0.00019178,2]
[330400967,1719348638606,-500.0,0.00019178,2]
[330400968,1719348638617,-1236.95,0.00019178,2]
[330400969,1719348638626,-521.84,0.00019178,2]
[330400970,1719348638636,-393.54463292,0.00019178,2]
[330400971,1719348638646,-746.51,0.00019178,2]
[330400972,1719348638656,-1570.68,0.00019178,2]
[330400973,1719348638666,-500.0,0.00019178,2]
[330400974,1719348638679,-500.0,0.00019178,2]
[330400975,1719348638691,-500.0,0.00019178,2]
[330400976,1719348638703,-500.0,0.00019178,2]
[330400977,1719348638713,-500.0,0.00019178,2]
[330400978,1719348638725,-500.0,0.00019178,2]
[330400979,1719348638737,-500.0,0.00019178,2]
[330400980,1719348638748,-500.0,0.00019178,2]
[330400981,1719348638758,-1273.82,0.00019178,2]
[330400982,1719348638768,-500.0,0.00019178,2]
[330400983,1719348638781,-19395.29,0.00019178,2]
[330400985,1719348638791,-500.0,0.00019178,2]
[330400986,1719348638800,-500.0,0.00019178,2]
[330400988,1719348638811,-1937.54,0.00019178,2]
[330400990,1719348638820,-552.87,0.00019178,2]
[330400992,1719348638830,-826.29,0.00019178,2]
[330400994,1719348638840,-500.0,0.00019178,2]
[330400996,1719348638850,-500.0,0.00019178,2]
[330400998,1719348638860,-150.94626974,0.00019178,2]
[330401000,1719348638870,-500.0,0.00019178,2]
[330401002,1719348638880,-805.34,0.00019178,2]
[330401004,1719348638889,-1260.17,0.00019178,2]
[330401006,1719348638899,-500.0,0.00019178,2]
[330401008,1719348638909,-500.0,0.00019178,2]
[330401010,1719348638920,-950.21,0.00019178,2]
[330401012,1719348638930,-888.63,0.00019178,2]
[330401014,1719348638940,-500.0,0.00019178,2]
[330401016,1719348638950,-2691.81,0.00019178,2]
[330401018,1719348638960,-500.0,0.00019178,2]
[330401020,1719348638969,-725.45,0.00019178,2]
[330401022,1719348638979,-500.0,0.00019178,2]
[330401024,1719348638988,-500.0,0.00019178,2]
[330401026,1719348638998,-500.0,0.00019178,2]
[330401028,1719348639006,-500.0,0.00019178,2]
[330401030,1719348639017,-1118.26,0.00019178,2]
[330401032,1719348639027,-641.77,0.00019178,2]
[330401034,1719348639037,-201.29624612,0.00019178,2]
[330401036,1719348639048,-2342.08455312,0.00019178,2]
[330401235,1719348640911,-3022.81708204,0.00018795,2]
[330401237,1719348640921,-196.12501385,0.00019076,2]
[330401239,1719348640930,-1530.92660359,0.00019178,2]
[330401241,1719348640941,-1408.23451708,0.00019178,2]
[330401243,1719348640952,-8415.49432621,0.00019178,2]
[330401245,1719348640961,-500.0,0.00019178,2]
[330401247,1719348640970,-2876.22,0.00019178,2]
[330401249,1719348640979,-593.02,0.00019178,2]
[330401251,1719348640988,-255.55907409,0.00019178,2]
[330401253,1719348640997,-500.0,0.00019178,2]
[330401255,1719348641006,-631.94,0.00019178,2]
[330401257,1719348641015,-500.0,0.00019178,2]
[330401259,1719348641024,-20381.58,0.00019178,2]
[330401261,1719348641033,-200.0,0.00019178,2]
[330401263,1719348641042,-500.0,0.00019178,2]
[330401265,1719348641051,-500.0,0.00019178,2]
[330401267,1719348641061,-500.0,0.00019178,2]
[330401269,1719348641070,-500.0,0.00019178,2]
[330401271,1719348641079,-1881.18,0.00019178,2]
[330401273,1719348641087,-500.0,0.00019178,2]
[330401275,1719348641096,-500.0,0.00019178,2]
[330401277,1719348641105,-2201.27,0.00019178,2]
[330401279,1719348641114,-500.0,0.00019178,2]
[330401281,1719348641123,-256.16292923,0.00019178,2]
[330401283,1719348641132,-2014.87,0.00019178,2]
[330401285,1719348641141,-1273.03,0.00019178,2]
[330401287,1719348641150,-921.42,0.00019178,2]
[330401289,1719348641159,-812.45,0.00019178,2]
[330401291,1719348641168,-500.0,0.00019178,2]
[330401293,1719348641177,-2161.88,0.00019178,2]
[330401295,1719348641186,-500.0,0.00019178,2]
[330401298,1719348641203,-1744.69,0.00019178,2]
[330401300,1719348641214,-651.38,0.00019178,2]
[330401302,1719348641223,-710.77,0.00019178,2]
[330401304,1719348641233,-1888.56,0.00019178,2]
[330401306,1719348641242,-956.02,0.00019178,2]
[330401308,1719348641251,-500.0,0.00019178,2]
[330401310,1719348641260,-6674.59,0.00019178,2]
[330401312,1719348641269,-1360.75,0.00019178,2]
[330401314,1719348641278,-1259.87,0.00019178,2]
[330401316,1719348641287,-500.0,0.00019178,2]
[330401318,1719348641296,-6630.66,0.00019178,2]
[330401320,1719348641305,-500.0,0.00019178,2]
[330401322,1719348641314,-622.15,0.00019178,2]
[330401324,1719348641324,-5770.96,0.00019178,2]
[330401326,1719348641333,-500.0,0.00019178,2]
[330401328,1719348641341,-500.0,0.00019178,2]
[330401330,1719348641350,-500.0,0.00019178,2]
[330401332,1719348641360,-500.0,0.00019178,2]
[330401334,1719348641369,-500.0,0.00019178,2]
[330401336,1719348641378,-500.0,0.00019178,2]
[330401338,1719348641387,-582.15,0.00019178,2]
[330401340,1719348641396,-521.74,0.00019178,2]
[330401342,1719348641404,-500.0,0.00019178,2]
[330401344,1719348641413,-500.0,0.00019178,2]
[330401346,1719348641424,-500.0,0.00019178,2]
[330401348,1719348641433,-500.0,0.00019178,2]
[330401350,1719348641442,-500.0,0.00019178,2]
[330401352,1719348641451,-771.48,0.00019178,2]
[330401354,1719348641460,-580.83,0.00019178,2]
[330401356,1719348641469,-500.0,0.00019178,2]
[330401358,1719348641479,-1392.61,0.00019178,2]
[330401360,1719348641489,-500.0,0.00019178,2]
[330401362,1719348641498,-1305.19,0.00019178,2]
[330401364,1719348641507,-500.0,0.00019178,2]
[330401366,1719348641517,-20513.16,0.00019178,2]
[330401368,1719348641526,-500.0,0.00019178,2]
[330401370,1719348641534,-500.0,0.00019178,2]
[330401372,1719348641544,-554.07,0.00019178,2]
[330401374,1719348641553,-1072.31,0.00019178,2]
[330401376,1719348641563,-1442.64,0.00019178,2]
[330401378,1719348641572,-500.0,0.00019178,2]
[330401380,1719348641582,-572.94,0.00019178,2]
[330401382,1719348641591,-500.0,0.00019178,2]
[330401384,1719348641600,-789.38,0.00019178,2]
[330401386,1719348641609,-500.0,0.00019178,2]
[330401388,1719348641619,-613.09824605,0.00019178,2]
[330401390,1719348641628,-1275.7,0.00019178,2]
[330401392,1719348641637,-2889.88,0.00019178,2]
[330401394,1719348641646,-500.0,0.00019178,2]
[330401396,1719348641656,-500.0,0.00019178,2]
[330401398,1719348641665,-500.0,0.00019178,2]
[330401400,1719348641675,-505.48,0.00019178,2]
[330401402,1719348641685,-842.37,0.00019178,2]
[330401404,1719348641699,-978.67,0.00019178,2]
[330401406,1719348641709,-500.0,0.00019178,2]
[330401409,1719348641723,-500.0,0.00019178,2]
[330401411,1719348641736,-500.0,0.00019178,2]
[330401413,1719348641745,-1303.95,0.00019178,2]
[330401415,1719348641755,-500.0,0.00019178,2]
[330401417,1719348641764,-1171.06,0.00019178,2]
[330401419,1719348641773,-6942.2,0.00019178,2]
[330401421,1719348641782,-500.0,0.00019178,2]
[330401422,1719348641792,-500.0,0.00019178,2]
[330401423,1719348641802,-500.0,0.00019178,2]
[330401424,1719348641811,-535.52,0.00019178,2]
[330401425,1719348641820,-500.0,0.00019178,2]
[330401426,1719348641829,-500.0,0.00019178,2]
[330401427,1719348641837,-500.0,0.00019178,2]
[330401428,1719348641846,-1815.77,0.00019178,2]
[330401429,1719348641856,-500.0,0.00019178,2]
[330401430,1719348641865,-2667.54,0.00019178,2]
[330401431,1719348641874,-500.0,0.00019178,2]
[330401432,1719348641883,-500.0,0.00019178,2]
[330401433,1719348641892,-2981.72,0.00019178,2]
[330401434,1719348641901,-500.0,0.00019178,2]
[330401436,1719348641911,-4062.68,0.00019178,2]
[330401438,1719348641921,-1661.13,0.00019178,2]
[330401440,1719348641930,-500.0,0.00019178,2]
[330401442,1719348641939,-5844.31,0.00019178,2]
[330401444,1719348641948,-500.0,0.00019178,2]
[330401446,1719348641958,-500.0,0.00019178,2]
[330401448,1719348641967,-512.32,0.00019178,2]
[330401450,1719348641977,-500.0,0.00019178,2]
[330401452,1719348641986,-21405.64,0.00019178,2]
[330401454,1719348641995,-500.0,0.00019178,2]
[330401456,1719348642004,-500.0,0.00019178,2]
[330401458,1719348642014,-871.57,0.00019178,2]
[330401460,1719348642023,-500.0,0.00019178,2]
[330401462,1719348642032,-1305.15,0.00019178,2]
[330401464,1719348642041,-6166.89,0.00019178,2]
[330401466,1719348642051,-500.0,0.00019178,2]
[330401468,1719348642060,-3735.05,0.00019178,2]
[330401470,1719348642069,-1589.07,0.00019178,2]
[330401472,1719348642078,-503.71,0.00019178,2]
[330401474,1719348642088,-1685.67,0.00019178,2]
[330401476,1719348642097,-500.0,0.00019178,2]
[330401478,1719348642106,-500.0,0.00019178,2]
[330401480,1719348642115,-500.0,0.00019178,2]
[330401482,1719348642124,-1599.38,0.00019178,2]
[330401484,1719348642133,-1232.21,0.00019178,2]
[330401486,1719348642142,-500.0,0.00019178,2]
[330401488,1719348642152,-1246.17,0.00019178,2]
[330401490,1719348642161,-500.0,0.00019178,2]
[330401492,1719348642170,-500.0,0.00019178,2]
[330401494,1719348642180,-500.0,0.00019178,2]
[330401496,1719348642189,-882.55,0.00019178,2]
[330401498,1719348642200,-1134.67,0.00019178,2]
[330401500,1719348642208,-500.0,0.00019178,2]
[330401502,1719348642218,-500.0,0.00019178,2]
[330401504,1719348642231,-500.0,0.00019178,2]
[330401506,1719348642241,-629.02,0.00019178,2]
[330401509,1719348642250,-817.29,0.00019178,2]
[330401511,1719348642260,-829.83,0.00019178,2]
[330401513,1719348642269,-1518.92,0.00019178,2]
[330401515,1719348642278,-500.0,0.00019178,2]
[330401517,1719348642288,-701.04,0.00019178,2]
[330401519,1719348642297,-1045.27,0.00019178,2]
[330401521,1719348642307,-1784.66,0.00019178,2]
[330401523,1719348642316,-500.0,0.00019178,2]
[330401525,1719348642326,-2299.84,0.00019178,2]
[330401527,1719348642336,-1800.9,0.00019178,2]
[330401529,1719348642345,-1081.17,0.00019178,2]
[330401531,1719348642356,-500.0,0.00019178,2]
[330401533,1719348642365,-3826.99,0.00019178,2]
[330401535,1719348642375,-2063.01,0.00019178,2]
[330401537,1719348642384,-2297.74,0.00019178,2]